[Event "Titled Tuesday Blitz October 18 Late 2022"]
[White "Mikhailov, Viacheslav"]
[Black "Pranav, V"]
[WhiteFideId "4187369"]
[BlackFideId "25060783"]
[WhiteElo "2381"]
[BlackElo "2430"]
[Result "1-0"]
[Round "09"]
[TimeControl "180+1"]
[Date "2022.10.18"]
[WhiteClock "0:00:03"]
[BlackClock "0:00:13"]

1. Nf3 {[%clk 0:02:59]}  Nf6 {[%clk 0:02:59]} 2. g3 {[%clk 0:02:59]}  g6 {[%clk 0:03:00]} 3. Bg2 {[%clk 0:03:00]}  Bg7 {[%clk 0:03:01]} 4. O-O {[%clk 0:03:01]}  O-O {[%clk 0:03:01]} 5. c4 {[%clk 0:03:02]}  d6 {[%clk 0:03:02]} 6. Nc3 {[%clk 0:03:02]}  e5 {[%clk 0:03:02]} 7. d3 {[%clk 0:03:03]}  Nc6 {[%clk 0:03:02]} 8. Bg5 {[%clk 0:03:03]}  h6 {[%clk 0:03:02]} 9. Bxf6 {[%clk 0:03:04]}  Qxf6 {[%clk 0:03:02]} 10. Rc1 {[%clk 0:03:04]}  Qd8 {[%clk 0:03:02]} 11. Nd5 {[%clk 0:03:04]}  f5 {[%clk 0:03:02]} 12. b4 {[%clk 0:03:03]}  Kh7 {[%clk 0:03:00]} 13. b5 {[%clk 0:03:03]}  Ne7 {[%clk 0:03:01]} 14. Nd2 {[%clk 0:03:03]}  Nxd5 {[%clk 0:02:50]} 15. cxd5 {[%clk 0:03:04]}  Bd7 {[%clk 0:02:49]} 16. Qb3 {[%clk 0:03:04]}  Rf7 {[%clk 0:02:48]} 17. Rc4 {[%clk 0:03:02]}  Be8 {[%clk 0:02:47]} 18. Rfc1 {[%clk 0:03:02]}  a6 {[%clk 0:02:47]} 19. bxa6 {[%clk 0:02:56]}  Rxa6 {[%clk 0:02:48]} 20. Qxb7 {[%clk 0:02:51]}  Rb6 {[%clk 0:02:41]} 21. Qa7 {[%clk 0:02:43]}  c5 {[%clk 0:02:41]} 22. Qa5 {[%clk 0:02:16]}  Qb8 {[%clk 0:02:39]} 23. Nb3 {[%clk 0:02:05]}  Ra7 {[%clk 0:02:38]} 24. Qd2 {[%clk 0:02:05]}  Rba6 {[%clk 0:02:35]} 25. R4c2 {[%clk 0:02:02]}  Qa8 {[%clk 0:02:33]} 26. e4 {[%clk 0:01:55]}  Rxa2 {[%clk 0:02:22]} 27. h4 {[%clk 0:01:41]}  Rxc2 {[%clk 0:02:18]} 28. Qxc2 {[%clk 0:01:30]}  Ra3 {[%clk 0:02:18]} 29. Nd2 {[%clk 0:01:27]}  Ra2 {[%clk 0:02:09]} 30. Qd1 {[%clk 0:01:25]}  f4 {[%clk 0:01:52]} 31. Nc4 {[%clk 0:01:21]}  Qd8 {[%clk 0:01:49]} 32. Ra1 {[%clk 0:01:09]}  Rxa1 {[%clk 0:01:48]} 33. Qxa1 {[%clk 0:01:10]}  fxg3 {[%clk 0:01:48]} 34. fxg3 {[%clk 0:01:11]}  Bb5 {[%clk 0:01:47]} 35. Kh2 {[%clk 0:00:54]}  Qc7 {[%clk 0:01:43]} 36. Qa8 {[%clk 0:00:47]}  h5 {[%clk 0:01:40]} 37. Bh3 {[%clk 0:00:39]}  Kh6 {[%clk 0:01:31]} 38. Qg8 {[%clk 0:00:32]}  Bxc4 {[%clk 0:00:58]} 39. dxc4 {[%clk 0:00:33]}  Qa5 {[%clk 0:00:58]} 40. Qe6 {[%clk 0:00:31]}  Qa2+ {[%clk 0:00:58]} 41. Bg2 {[%clk 0:00:19]}  Qa6 {[%clk 0:00:58]} 42. Bf1 {[%clk 0:00:13]}  Kh7 {[%clk 0:00:56]} 43. Kh3 {[%clk 0:00:10]}  Qb6 {[%clk 0:00:48]} 44. Be2 {[%clk 0:00:08]}  Qb2 {[%clk 0:00:46]} 45. Bf3 {[%clk 0:00:08]}  Qb3 {[%clk 0:00:44]} 46. Bg2 {[%clk 0:00:06]}  Qb8 {[%clk 0:00:23]} 47. Bf3 {[%clk 0:00:05]}  Kh6 {[%clk 0:00:21]} 48. Qe7 {[%clk 0:00:04]}  Bf8 {[%clk 0:00:13]} 49. Qg5+ {[%clk 0:00:03]}  Kh7 {[%clk 0:00:13]} 50. Qf6 {[%clk 0:00:04]}  Bg7 {[%clk 0:00:13]} 51. Qe7 {[%clk 0:00:03]} 1-0


[Site "https://www.chess.com"]

[Event "Titled Tuesday Blitz October 18 Late 2022"]
[White "Mortazavi, Ali"]
[Black "Harvey, Marcus R"]
[WhiteFideId "401323"]
[BlackFideId "400092"]
[WhiteElo "2339"]
[BlackElo "2457"]
[Result "0-1"]
[Round "09"]
[TimeControl "180+1"]
[Date "2022.10.18"]
[WhiteClock "0:00:15"]
[BlackClock "0:00:07"]

1. Nf3 {[%clk 0:02:59]}  Nf6 {[%clk 0:02:57]} 2. g3 {[%clk 0:02:59]}  d5 {[%clk 0:02:57]} 3. Bg2 {[%clk 0:03:00]}  Bg4 {[%clk 0:02:57]} 4. O-O {[%clk 0:03:01]}  e6 {[%clk 0:02:56]} 5. d3 {[%clk 0:03:02]}  Nbd7 {[%clk 0:02:56]} 6. c4 {[%clk 0:03:01]}  c6 {[%clk 0:02:53]} 7. Be3 {[%clk 0:03:01]}  Bxf3 {[%clk 0:02:49]} 8. Bxf3 {[%clk 0:03:01]}  Ne5 {[%clk 0:02:49]} 9. Bg2 {[%clk 0:02:52]}  dxc4 {[%clk 0:02:49]} 10. d4 {[%clk 0:02:48]}  Ned7 {[%clk 0:02:44]} 11. a4 {[%clk 0:02:32]}  Bb4 {[%clk 0:02:38]} 12. Qc2 {[%clk 0:02:26]}  Nb6 {[%clk 0:02:29]} 13. a5 {[%clk 0:02:14]}  Nbd5 {[%clk 0:02:30]} 14. Bd2 {[%clk 0:02:15]}  O-O {[%clk 0:02:07]} 15. Qxc4 {[%clk 0:02:15]}  Bxd2 {[%clk 0:01:57]} 16. Nxd2 {[%clk 0:02:15]}  Qe7 {[%clk 0:01:57]} 17. a6 {[%clk 0:01:57]}  b5 {[%clk 0:01:53]} 18. Qxc6 {[%clk 0:01:31]}  Qb4 {[%clk 0:01:51]} 19. Qc2 {[%clk 0:00:58]}  Qxd4 {[%clk 0:01:41]} 20. e3 {[%clk 0:00:51]}  Qb6 {[%clk 0:01:35]} 21. Nb3 {[%clk 0:00:48]}  Rac8 {[%clk 0:01:32]} 22. Qe2 {[%clk 0:00:48]}  Nb4 {[%clk 0:01:23]} 23. Bb7 {[%clk 0:00:43]}  Rc2 {[%clk 0:01:21]} 24. Qf3 {[%clk 0:00:42]}  Rxb2 {[%clk 0:01:20]} 25. Nd4 {[%clk 0:00:43]}  Nc2 {[%clk 0:01:15]} 26. Nxc2 {[%clk 0:00:26]}  Rxc2 {[%clk 0:01:16]} 27. Rfb1 {[%clk 0:00:25]}  b4 {[%clk 0:01:11]} 28. Qf4 {[%clk 0:00:22]}  b3 {[%clk 0:00:58]} 29. Qa4 {[%clk 0:00:22]}  Qc5 {[%clk 0:00:36]} 30. Qxb3 {[%clk 0:00:21]}  Ng4 {[%clk 0:00:32]} 31. Rf1 {[%clk 0:00:20]}  Rc3 {[%clk 0:00:18]} 32. Qa4 {[%clk 0:00:19]}  h5 {[%clk 0:00:16]} 33. Qf4 {[%clk 0:00:16]}  Rc4 {[%clk 0:00:13]} 34. Qf3 {[%clk 0:00:14]}  Rd8 {[%clk 0:00:12]} 35. Rad1 {[%clk 0:00:13]}  Rxd1 {[%clk 0:00:08]} 36. Rxd1 {[%clk 0:00:14]}  Rc1 {[%clk 0:00:07]} 37. Kg2 {[%clk 0:00:13]}  Rxd1 {[%clk 0:00:05]} 38. Qxd1 {[%clk 0:00:14]}  Kh7 {[%clk 0:00:05]} 39. Qb1+ {[%clk 0:00:13]}  g6 {[%clk 0:00:05]} 40. Qe4 {[%clk 0:00:13]}  Nf6 {[%clk 0:00:04]} 41. Qf3 {[%clk 0:00:13]}  Kg7 {[%clk 0:00:04]} 42. Ba8 {[%clk 0:00:12]}  Qb6 {[%clk 0:00:04]} 43. Bb7 {[%clk 0:00:12]}  Nd7 {[%clk 0:00:04]} 44. Qd1 {[%clk 0:00:12]}  Ne5 {[%clk 0:00:03]} 45. Qd4 {[%clk 0:00:12]}  Qxd4 {[%clk 0:00:03]} 46. exd4 {[%clk 0:00:13]}  Nc4 {[%clk 0:00:04]} 47. Kf3 {[%clk 0:00:12]}  Kf6 {[%clk 0:00:04]} 48. Ke4 {[%clk 0:00:13]}  Ke7 {[%clk 0:00:04]} 49. d5 {[%clk 0:00:13]}  Nd6+ {[%clk 0:00:04]} 50. Ke5 {[%clk 0:00:14]}  f6+ {[%clk 0:00:05]} 51. Kd4 {[%clk 0:00:14]}  e5+ {[%clk 0:00:04]} 52. Kc5 {[%clk 0:00:15]}  Ne4+ {[%clk 0:00:04]} 53. Kc6 {[%clk 0:00:15]}  Kd8 {[%clk 0:00:04]} 54. d6 {[%clk 0:00:15]}  Nxf2 {[%clk 0:00:04]} 55. Ba8 {[%clk 0:00:15]}  e4 {[%clk 0:00:05]} 56. Kc5 {[%clk 0:00:13]}  e3 {[%clk 0:00:04]} 57. Bf3 {[%clk 0:00:13]}  Nd3+ {[%clk 0:00:04]} 58. Kc6 {[%clk 0:00:14]}  Ne5+ {[%clk 0:00:04]} 59. Kb7 {[%clk 0:00:13]}  Nxf3 {[%clk 0:00:05]} 60. Kxa7 {[%clk 0:00:13]}  e2 {[%clk 0:00:06]} 61. Kb8 {[%clk 0:00:14]}  e1=Q {[%clk 0:00:07]} 62. a7 {[%clk 0:00:15]}  Qb4+ {[%clk 0:00:07]} 63. Ka8 {[%clk 0:00:15]}  Ne5 {[%clk 0:00:07]} 0-1


[Site "https://www.chess.com"]

[Event "Titled Tuesday Blitz October 18 Late 2022"]
[White "Nakamura, Hikaru"]
[Black "Bortnyk, Mykola"]
[WhiteFideId "2016192"]
[BlackFideId "14120836"]
[WhiteElo "2909"]
[BlackElo "2582"]
[Result "1/2-1/2"]
[Round "09"]
[TimeControl "180+1"]
[Date "2022.10.18"]
[WhiteClock "0:00:24"]
[BlackClock "0:00:10"]

1. g4 {[%clk 0:03:00]}  d5 {[%clk 0:02:59]} 2. Bg2 {[%clk 0:03:00]}  c6 {[%clk 0:03:00]} 3. h3 {[%clk 0:03:00]}  e5 {[%clk 0:02:59]} 4. d3 {[%clk 0:03:00]}  h6 {[%clk 0:02:57]} 5. f4 {[%clk 0:02:55]}  Qh4+ {[%clk 0:02:52]} 6. Kf1 {[%clk 0:02:55]}  Bc5 {[%clk 0:02:52]} 7. e3 {[%clk 0:02:50]}  exf4 {[%clk 0:02:44]} 8. Nf3 {[%clk 0:02:49]}  Qf6 {[%clk 0:02:41]} 9. exf4 {[%clk 0:02:48]}  Ne7 {[%clk 0:02:39]} 10. Nc3 {[%clk 0:02:44]}  h5 {[%clk 0:02:38]} 11. f5 {[%clk 0:02:39]}  hxg4 {[%clk 0:02:23]} 12. hxg4 {[%clk 0:02:39]}  Rxh1+ {[%clk 0:02:24]} 13. Bxh1 {[%clk 0:02:40]}  g6 {[%clk 0:02:23]} 14. Qe1 {[%clk 0:01:33]}  gxf5 {[%clk 0:02:16]} 15. g5 {[%clk 0:01:34]}  Qh8 {[%clk 0:02:16]} 16. Bg2 {[%clk 0:01:34]}  Be6 {[%clk 0:02:14]} 17. Ne2 {[%clk 0:01:35]}  Ng6 {[%clk 0:02:12]} 18. c3 {[%clk 0:01:32]}  Nd7 {[%clk 0:02:00]} 19. Nf4 {[%clk 0:01:29]}  Ndf8 {[%clk 0:01:54]} 20. Be3 {[%clk 0:01:24]}  Bxe3 {[%clk 0:01:51]} 21. Qxe3 {[%clk 0:01:25]}  Nxf4 {[%clk 0:01:51]} 22. Qxf4 {[%clk 0:01:25]}  O-O-O {[%clk 0:01:52]} 23. Kf2 {[%clk 0:01:22]}  Ng6 {[%clk 0:01:51]} 24. Qd4 {[%clk 0:01:22]}  Qxd4+ {[%clk 0:01:43]} 25. Nxd4 {[%clk 0:01:23]}  Rh8 {[%clk 0:01:43]} 26. Rg1 {[%clk 0:01:19]}  Kd7 {[%clk 0:01:37]} 27. b4 {[%clk 0:01:17]}  Rh5 {[%clk 0:01:28]} 28. Bf3 {[%clk 0:01:17]}  Rh2+ {[%clk 0:01:28]} 29. Rg2 {[%clk 0:01:17]}  Rxg2+ {[%clk 0:01:25]} 30. Bxg2 {[%clk 0:01:18]}  b6 {[%clk 0:01:19]} 31. Bf3 {[%clk 0:01:15]}  a6 {[%clk 0:01:14]} 32. Ne2 {[%clk 0:01:15]}  Ke7 {[%clk 0:00:54]} 33. d4 {[%clk 0:01:13]}  Nf8 {[%clk 0:00:45]} 34. Ke3 {[%clk 0:01:10]}  f6 {[%clk 0:00:45]} 35. gxf6+ {[%clk 0:01:06]}  Kxf6 {[%clk 0:00:46]} 36. Nf4 {[%clk 0:01:06]}  Bf7 {[%clk 0:00:36]} 37. Be2 {[%clk 0:01:06]}  a5 {[%clk 0:00:34]} 38. Ba6 {[%clk 0:01:02]}  axb4 {[%clk 0:00:22]} 39. cxb4 {[%clk 0:01:03]}  b5 {[%clk 0:00:22]} 40. Bc8 {[%clk 0:00:59]}  Be6 {[%clk 0:00:19]} 41. Bb7 {[%clk 0:00:55]}  Bd7 {[%clk 0:00:19]} 42. Nd3 {[%clk 0:00:56]}  Ke7 {[%clk 0:00:17]} 43. Nc5 {[%clk 0:00:54]}  Kd6 {[%clk 0:00:16]} 44. a4 {[%clk 0:00:54]}  bxa4 {[%clk 0:00:15]} 45. Nxa4 {[%clk 0:00:55]}  Ne6 {[%clk 0:00:15]} 46. Nc5 {[%clk 0:00:54]}  f4+ {[%clk 0:00:15]} 47. Kf3 {[%clk 0:00:54]}  Nxd4+ {[%clk 0:00:16]} 48. Kxf4 {[%clk 0:00:55]}  Nc2 {[%clk 0:00:14]} 49. Nd3 {[%clk 0:00:53]}  Kc7 {[%clk 0:00:14]} 50. Ba8 {[%clk 0:00:33]}  Kb8 {[%clk 0:00:14]} 51. Ne5 {[%clk 0:00:34]}  Kxa8 {[%clk 0:00:14]} 52. Nxd7 {[%clk 0:00:34]}  Nxb4 {[%clk 0:00:15]} 53. Ke5 {[%clk 0:00:34]}  Kb7 {[%clk 0:00:14]} 54. Kd6 {[%clk 0:00:35]}  d4 {[%clk 0:00:14]} 55. Ne5 {[%clk 0:00:30]}  Kb6 {[%clk 0:00:13]} 56. Nc4+ {[%clk 0:00:22]}  Kb5 {[%clk 0:00:13]} 57. Nd2 {[%clk 0:00:23]}  d3 {[%clk 0:00:11]} 58. Ke5 {[%clk 0:00:23]}  c5 {[%clk 0:00:10]} 59. Ke4 {[%clk 0:00:24]}  c4 {[%clk 0:00:09]} 60. Kd4 {[%clk 0:00:24]}  Nc2+ {[%clk 0:00:10]} 61. Kc3 {[%clk 0:00:24]}  Ne3 {[%clk 0:00:10]} 62. Nxc4 {[%clk 0:00:24]}  Nxc4 {[%clk 0:00:10]} 63. Kxd3 {[%clk 0:00:24]} 1/2-1/2


[Site "https://www.chess.com"]

[Event "Titled Tuesday Blitz October 18 Late 2022"]
[White "Ozalp, Burak"]
[Black "Itkis, Boris"]
[WhiteFideId "6314210"]
[BlackFideId "1209167"]
[WhiteElo "2106"]
[BlackElo "2232"]
[Result "1-0"]
[Round "09"]
[TimeControl "180+1"]
[Date "2022.10.19"]
[WhiteClock "0:00:11"]
[BlackClock "0:00:08"]

1. d4 {[%clk 0:02:55]}  d5 {[%clk 0:02:59]} 2. Nf3 {[%clk 0:02:54]}  Nf6 {[%clk 0:02:59]} 3. g3 {[%clk 0:02:52]}  c5 {[%clk 0:02:58]} 4. dxc5 {[%clk 0:02:50]}  e6 {[%clk 0:02:57]} 5. Bg2 {[%clk 0:02:50]}  Bxc5 {[%clk 0:02:57]} 6. O-O {[%clk 0:02:50]}  O-O {[%clk 0:02:57]} 7. b3 {[%clk 0:02:49]}  Nc6 {[%clk 0:02:54]} 8. Bb2 {[%clk 0:02:49]}  Re8 {[%clk 0:02:55]} 9. Ne5 {[%clk 0:02:23]}  Qc7 {[%clk 0:02:50]} 10. Nxc6 {[%clk 0:02:19]}  Qxc6 {[%clk 0:02:50]} 11. Nd2 {[%clk 0:02:16]}  Qc7 {[%clk 0:02:19]} 12. e4 {[%clk 0:02:10]}  d4 {[%clk 0:01:59]} 13. e5 {[%clk 0:01:35]}  Qxe5 {[%clk 0:01:58]} 14. Nf3 {[%clk 0:01:35]}  Qc7 {[%clk 0:01:55]} 15. Nxd4 {[%clk 0:01:22]}  e5 {[%clk 0:01:55]} 16. Nb5 {[%clk 0:01:15]}  Qb6 {[%clk 0:01:55]} 17. c4 {[%clk 0:01:13]}  Bg4 {[%clk 0:01:46]} 18. Qc2 {[%clk 0:01:10]}  Rad8 {[%clk 0:01:38]} 19. Rae1 {[%clk 0:00:41]}  a6 {[%clk 0:01:29]} 20. Nc3 {[%clk 0:00:40]}  Bd4 {[%clk 0:01:12]} 21. Nd5 {[%clk 0:00:26]}  Nxd5 {[%clk 0:01:08]} 22. Bxd4 {[%clk 0:00:26]}  Qxd4 {[%clk 0:01:02]} 23. Bxd5 {[%clk 0:00:22]}  Rxd5 {[%clk 0:00:19]} 24. cxd5 {[%clk 0:00:20]}  Bh3 {[%clk 0:00:20]} 25. Qe4 {[%clk 0:00:18]}  Qxe4 {[%clk 0:00:16]} 26. Rxe4 {[%clk 0:00:18]}  Bxf1 {[%clk 0:00:17]} 27. Kxf1 {[%clk 0:00:18]}  f6 {[%clk 0:00:12]} 28. Rc4 {[%clk 0:00:17]}  Kf7 {[%clk 0:00:11]} 29. Rc7+ {[%clk 0:00:16]}  Kg6 {[%clk 0:00:09]} 30. Rxb7 {[%clk 0:00:16]}  Rd8 {[%clk 0:00:10]} 31. Rb6 {[%clk 0:00:15]}  Rxd5 {[%clk 0:00:06]} 32. Rxa6 {[%clk 0:00:15]}  Rd2 {[%clk 0:00:07]} 33. a4 {[%clk 0:00:14]}  Rb2 {[%clk 0:00:07]} 34. Rb6 {[%clk 0:00:13]}  Kf5 {[%clk 0:00:07]} 35. Rb4 {[%clk 0:00:13]}  e4 {[%clk 0:00:07]} 36. a5 {[%clk 0:00:14]}  Kg4 {[%clk 0:00:08]} 37. Rxe4+ {[%clk 0:00:12]}  Kh3 {[%clk 0:00:08]} 38. Rh4# {[%clk 0:00:11]} 1-0


[Site "https://www.chess.com"]

[Event "Titled Tuesday Blitz October 18 Late 2022"]
[White "Pakleza, Zbigniew"]
[Black "Osmak, Yuliia"]
[WhiteFideId "1119290"]
[BlackFideId "14101602"]
[WhiteElo "2411"]
[BlackElo "2328"]
[Result "0-1"]
[Round "09"]
[TimeControl "180+1"]
[Date "2022.10.18"]
[WhiteClock "0:00:01"]
[BlackClock "0:00:36"]

1. d4 {[%clk 0:03:00]}  Nf6 {[%clk 0:02:54]} 2. Nf3 {[%clk 0:03:00]}  e6 {[%clk 0:02:52]} 3. Bf4 {[%clk 0:03:01]}  d5 {[%clk 0:02:50]} 4. e3 {[%clk 0:03:01]}  Bd6 {[%clk 0:02:50]} 5. Bg3 {[%clk 0:03:01]}  O-O {[%clk 0:02:49]} 6. Nbd2 {[%clk 0:03:02]}  c5 {[%clk 0:02:50]} 7. c3 {[%clk 0:03:02]}  Qc7 {[%clk 0:02:50]} 8. Be2 {[%clk 0:03:03]}  Nbd7 {[%clk 0:02:47]} 9. c4 {[%clk 0:03:03]}  b6 {[%clk 0:02:42]} 10. Rc1 {[%clk 0:03:00]}  dxc4 {[%clk 0:02:31]} 11. Nxc4 {[%clk 0:03:01]}  Bxg3 {[%clk 0:02:30]} 12. hxg3 {[%clk 0:03:02]}  Bb7 {[%clk 0:02:29]} 13. O-O {[%clk 0:02:55]}  Rfd8 {[%clk 0:02:26]} 14. Qb3 {[%clk 0:02:49]}  Rac8 {[%clk 0:02:23]} 15. Qa3 {[%clk 0:02:37]}  Bd5 {[%clk 0:02:20]} 16. dxc5 {[%clk 0:02:30]}  Nxc5 {[%clk 0:02:14]} 17. b4 {[%clk 0:02:05]}  Nce4 {[%clk 0:02:13]} 18. Nce5 {[%clk 0:01:59]}  Qe7 {[%clk 0:02:04]} 19. Nd4 {[%clk 0:01:37]}  Qd6 {[%clk 0:01:53]} 20. Nd3 {[%clk 0:01:07]}  Nd2 {[%clk 0:01:42]} 21. Rfd1 {[%clk 0:00:53]}  Nc4 {[%clk 0:01:41]} 22. Qa6 {[%clk 0:00:48]}  Qb8 {[%clk 0:01:23]} 23. Nf4 {[%clk 0:00:43]}  Bb7 {[%clk 0:01:18]} 24. Qb5 {[%clk 0:00:34]}  a6 {[%clk 0:01:12]} 25. Qg5 {[%clk 0:00:30]}  h6 {[%clk 0:01:11]} 26. Qh4 {[%clk 0:00:31]}  Nb2 {[%clk 0:01:04]} 27. Rxc8 {[%clk 0:00:27]}  Qxc8 {[%clk 0:00:57]} 28. Rb1 {[%clk 0:00:25]}  e5 {[%clk 0:00:56]} 29. Nh5 {[%clk 0:00:06]}  Nxh5 {[%clk 0:00:52]} 30. Bxh5 {[%clk 0:00:07]}  exd4 {[%clk 0:00:52]} 31. Rxb2 {[%clk 0:00:07]}  g5 {[%clk 0:00:48]} 32. Qg4 {[%clk 0:00:03]}  Qc1+ {[%clk 0:00:47]} 33. Kh2 {[%clk 0:00:03]}  Qxb2 {[%clk 0:00:47]} 34. Qf5 {[%clk 0:00:02]}  Qxa2 {[%clk 0:00:36]} 35. Qf6 {[%clk 0:00:01]}  Qd5 {[%clk 0:00:36]} 36. Qxh6 {[%clk 0:00:01]}  Qxg2# {[%clk 0:00:36]} 0-1


[Site "https://www.chess.com"]

[Event "Titled Tuesday Blitz October 18 Late 2022"]
[White "Papasimakopoulos, Alexandros"]
[Black "Ballester Llagaria, Luis Eduardo"]
[WhiteFideId "4244125"]
[BlackFideId "2297620"]
[WhiteElo "2357"]
[BlackElo "2344"]
[Result "0-1"]
[Round "09"]
[TimeControl "180+1"]
[Date "2022.10.18"]
[WhiteClock "0:00:11"]
[BlackClock "0:00:12"]

1. d4 {[%clk 0:02:55]}  d5 {[%clk 0:02:59]} 2. c4 {[%clk 0:02:55]}  dxc4 {[%clk 0:03:00]} 3. Nf3 {[%clk 0:02:55]}  Nf6 {[%clk 0:03:00]} 4. e3 {[%clk 0:02:56]}  e6 {[%clk 0:03:00]} 5. Bxc4 {[%clk 0:02:56]}  a6 {[%clk 0:03:01]} 6. O-O {[%clk 0:02:57]}  b5 {[%clk 0:03:00]} 7. Bd3 {[%clk 0:02:56]}  Bb7 {[%clk 0:03:01]} 8. a4 {[%clk 0:02:57]}  b4 {[%clk 0:03:02]} 9. b3 {[%clk 0:02:57]}  Nbd7 {[%clk 0:03:02]} 10. Nbd2 {[%clk 0:02:57]}  c5 {[%clk 0:03:03]} 11. Bb2 {[%clk 0:02:57]}  Be7 {[%clk 0:03:03]} 12. Qe2 {[%clk 0:02:58]}  O-O {[%clk 0:03:03]} 13. Rac1 {[%clk 0:02:58]}  Qb8 {[%clk 0:02:49]} 14. a5 {[%clk 0:02:51]}  Qa7 {[%clk 0:02:43]} 15. Nc4 {[%clk 0:02:49]}  Rac8 {[%clk 0:02:38]} 16. Nfe5 {[%clk 0:02:49]}  Qa8 {[%clk 0:02:31]} 17. f3 {[%clk 0:02:41]}  Rfd8 {[%clk 0:02:28]} 18. Nxd7 {[%clk 0:02:41]}  Nxd7 {[%clk 0:02:29]} 19. Rfd1 {[%clk 0:02:37]}  Bc6 {[%clk 0:01:42]} 20. Ne5 {[%clk 0:02:22]}  Nxe5 {[%clk 0:01:30]} 21. dxe5 {[%clk 0:02:23]}  Bb7 {[%clk 0:01:29]} 22. Bc4 {[%clk 0:02:21]}  Rxd1+ {[%clk 0:01:08]} 23. Rxd1 {[%clk 0:02:17]}  Rd8 {[%clk 0:01:09]} 24. Ra1 {[%clk 0:02:10]}  Bd5 {[%clk 0:00:59]} 25. Re1 {[%clk 0:01:22]}  Bxc4 {[%clk 0:00:55]} 26. Qxc4 {[%clk 0:01:23]}  Qd5 {[%clk 0:00:52]} 27. Qxd5 {[%clk 0:01:16]}  exd5 {[%clk 0:00:48]} 28. Rc1 {[%clk 0:01:17]}  Rc8 {[%clk 0:00:46]} 29. e4 {[%clk 0:01:17]}  dxe4 {[%clk 0:00:29]} 30. fxe4 {[%clk 0:01:16]}  Kf8 {[%clk 0:00:28]} 31. Bd4 {[%clk 0:01:05]}  Ke8 {[%clk 0:00:24]} 32. Kf2 {[%clk 0:01:04]}  Kd7 {[%clk 0:00:25]} 33. Be3 {[%clk 0:01:03]}  Ke6 {[%clk 0:00:22]} 34. Bf4 {[%clk 0:00:59]}  Bd8 {[%clk 0:00:21]} 35. Kf3 {[%clk 0:00:53]}  Be7 {[%clk 0:00:15]} 36. g4 {[%clk 0:00:50]}  Kd7 {[%clk 0:00:16]} 37. g5 {[%clk 0:00:41]}  Kc6 {[%clk 0:00:16]} 38. Ke2 {[%clk 0:00:34]}  Kb5 {[%clk 0:00:16]} 39. Ra1 {[%clk 0:00:34]}  c4 {[%clk 0:00:15]} 40. bxc4+ {[%clk 0:00:34]}  Rxc4 {[%clk 0:00:15]} 41. Kd3 {[%clk 0:00:28]}  Rc3+ {[%clk 0:00:15]} 42. Ke2 {[%clk 0:00:28]}  b3 {[%clk 0:00:14]} 43. Bd2 {[%clk 0:00:25]}  Rh3 {[%clk 0:00:14]} 44. Bf4 {[%clk 0:00:24]}  Bc5 {[%clk 0:00:11]} 45. Bg3 {[%clk 0:00:20]}  Kc4 {[%clk 0:00:10]} 46. Rc1+ {[%clk 0:00:19]}  Kb4 {[%clk 0:00:09]} 47. Kd2 {[%clk 0:00:18]}  Rh5 {[%clk 0:00:08]} 48. h4 {[%clk 0:00:17]}  h6 {[%clk 0:00:09]} 49. Rf1 {[%clk 0:00:17]}  hxg5 {[%clk 0:00:08]} 50. hxg5 {[%clk 0:00:17]}  Rxg5 {[%clk 0:00:09]} 51. Rf3 {[%clk 0:00:15]}  Ka3 {[%clk 0:00:08]} 52. Be1 {[%clk 0:00:08]}  Bb4+ {[%clk 0:00:08]} 53. Ke2 {[%clk 0:00:08]}  Bxe1 {[%clk 0:00:07]} 54. Kxe1 {[%clk 0:00:09]}  Ka2 {[%clk 0:00:08]} 55. Rxf7 {[%clk 0:00:06]}  b2 {[%clk 0:00:08]} 56. Rb7 {[%clk 0:00:06]}  Rxe5 {[%clk 0:00:07]} 57. Kd2 {[%clk 0:00:06]}  b1=Q {[%clk 0:00:07]} 58. Rxb1 {[%clk 0:00:06]}  Kxb1 {[%clk 0:00:08]} 59. Ke3 {[%clk 0:00:07]}  Rxa5 {[%clk 0:00:08]} 60. Kf4 {[%clk 0:00:07]}  Rb5 {[%clk 0:00:08]} 61. e5 {[%clk 0:00:08]}  a5 {[%clk 0:00:09]} 62. e6 {[%clk 0:00:08]}  a4 {[%clk 0:00:09]} 63. Ke4 {[%clk 0:00:08]}  Rb8 {[%clk 0:00:10]} 64. Kf5 {[%clk 0:00:09]}  Re8 {[%clk 0:00:10]} 65. Kg6 {[%clk 0:00:09]}  Rxe6+ {[%clk 0:00:11]} 66. Kxg7 {[%clk 0:00:10]}  Re2 {[%clk 0:00:12]} 67. Kf7 {[%clk 0:00:11]}  a3 {[%clk 0:00:12]} 0-1


[Site "https://www.chess.com"]

[Event "Titled Tuesday Blitz October 18 Late 2022"]
[White "Petrova, Irina"]
[Black "Ezat, Mohamed"]
[WhiteFideId "14124122"]
[BlackFideId "10600906"]
[WhiteElo "2023"]
[BlackElo "2386"]
[Result "0-1"]
[Round "09"]
[TimeControl "180+1"]
[Date "2022.10.19"]
[WhiteClock "0:00:02"]
[BlackClock "0:01:10"]

1. e4 {[%clk 0:03:00]}  e5 {[%clk 0:02:59]} 2. Nf3 {[%clk 0:02:58]}  Nf6 {[%clk 0:02:59]} 3. Nxe5 {[%clk 0:02:57]}  d6 {[%clk 0:02:58]} 4. Nf3 {[%clk 0:02:57]}  Nxe4 {[%clk 0:02:57]} 5. Bd3 {[%clk 0:02:57]}  d5 {[%clk 0:02:56]} 6. O-O {[%clk 0:02:57]}  Bd6 {[%clk 0:02:56]} 7. Re1 {[%clk 0:02:57]}  O-O {[%clk 0:02:56]} 8. Bxe4 {[%clk 0:02:55]}  dxe4 {[%clk 0:02:56]} 9. Rxe4 {[%clk 0:02:55]}  Bf5 {[%clk 0:02:56]} 10. Re1 {[%clk 0:02:54]}  Bg4 {[%clk 0:02:56]} 11. Nc3 {[%clk 0:02:52]}  Nc6 {[%clk 0:02:55]} 12. h3 {[%clk 0:02:52]}  Bh5 {[%clk 0:02:54]} 13. Ne4 {[%clk 0:02:46]}  Re8 {[%clk 0:02:52]} 14. g4 {[%clk 0:02:27]}  Bg6 {[%clk 0:02:49]} 15. Nxd6 {[%clk 0:02:26]}  Qxd6 {[%clk 0:02:48]} 16. d3 {[%clk 0:02:24]}  Rxe1+ {[%clk 0:02:42]} 17. Qxe1 {[%clk 0:02:25]}  f5 {[%clk 0:02:40]} 18. Bd2 {[%clk 0:02:06]}  fxg4 {[%clk 0:02:39]} 19. hxg4 {[%clk 0:02:07]}  Re8 {[%clk 0:02:37]} 20. Qf1 {[%clk 0:02:03]}  Rf8 {[%clk 0:02:33]} 21. Qg2 {[%clk 0:01:58]}  Bf7 {[%clk 0:02:31]} 22. Ng5 {[%clk 0:01:48]}  Bd5 {[%clk 0:02:28]} 23. Ne4 {[%clk 0:01:42]}  Qd7 {[%clk 0:02:24]} 24. c3 {[%clk 0:01:23]}  Ne5 {[%clk 0:02:23]} 25. Be3 {[%clk 0:00:21]}  h6 {[%clk 0:02:09]} 26. Nc5 {[%clk 0:00:18]}  Qf7 {[%clk 0:02:05]} 27. Ne4 {[%clk 0:00:18]}  Nxd3 {[%clk 0:02:04]} 28. Rd1 {[%clk 0:00:13]}  Bxe4 {[%clk 0:02:04]} 29. Qxe4 {[%clk 0:00:11]}  Nxf2 {[%clk 0:02:04]} 30. Bxf2 {[%clk 0:00:07]}  Qxf2+ {[%clk 0:02:04]} 31. Kh1 {[%clk 0:00:08]}  Qxb2 {[%clk 0:01:58]} 32. Qd5+ {[%clk 0:00:08]}  Kh8 {[%clk 0:01:57]} 33. Qe4 {[%clk 0:00:06]}  Qxc3 {[%clk 0:01:53]} 34. Rd7 {[%clk 0:00:05]}  Qa1+ {[%clk 0:01:50]} 35. Kg2 {[%clk 0:00:05]}  Qxa2+ {[%clk 0:01:50]} 36. Kh3 {[%clk 0:00:04]}  Qb3+ {[%clk 0:01:48]} 37. Kh4 {[%clk 0:00:04]}  Qb6 {[%clk 0:01:37]} 38. Qe7 {[%clk 0:00:03]}  Qf2+ {[%clk 0:01:32]} 39. Kh5 {[%clk 0:00:01]}  Qh2+ {[%clk 0:01:19]} 40. Qh4 {[%clk 0:00:01]}  g6+ {[%clk 0:01:14]} 41. Kxg6 {[%clk 0:00:02]}  Rg8+ {[%clk 0:01:10]} 0-1


[Site "https://www.chess.com"]